[Event "German-ch Blitz Women 2022"]
[Site "Magdeburg"]
[Date "2022.08.13"]
[Round "20.1"]
[White "Paehtz, Elisabeth"]
[Black "Skibbe, Diana"]
[Result "1-0"]
[ECO "A80"]
[WhiteElo "2484"]
[BlackElo "1943"]
[Annotator "TA"]
[PlyCount "81"]
[EventDate "2022.08.10"]
[EventType "tourn"]
[EventCountry "GER"]
[SourceTitle "playchess.com"]
[Source "ChessBase"]
[SourceQuality "1"]
[TimeControl "180+2"]

{[%evp 15,81,75,102,85,88,39,38,37,33,43,54,58,87,56,56,38,21,0,0,-21,-14,-28,31,29,76,72,251,247,423,250,242,242,254,247,279,281,270,280,356,346,372,367,350,356,352,355,339,219,431,425,494,475,431,451,632,506,682,582,792,534,557,376,493,466,408,365,29980,29981]} 1. d4 {[%emt 0:00:01]} f5 {[%emt 0:00:01]} 2. Nf3 {[%emt 0:00:03]} Nf6 {[%emt 0:00:02]} 3. g3 {[%emt 0:00:01]} d6 {[%emt 0:00:03]} 4. Bg2 {[%emt 0:00:01]} g6 {[%emt 0:00:01]} 5. O-O {[%emt 0:00:02]} Bg7 {[%emt 0:00:01]} 6. b3 {[%emt 0:00:02]} O-O {[%emt 0:00:03]} 7. Bb2 {[%emt 0:00:01]} e5 {[%emt 0:00:25]} 8. dxe5 {[%emt 0:00:02]} Ng4 {[%emt 0:00:01]} 9. Qd5+ {[%emt 0:00:18] A81: Dutch Defence: 2 g3.} (9. Nbd2 Nxe5 10. Nxe5 dxe5 11. Nc4 Qe7 12. Qd5+ Kh8 13. Bxe5 c6 14. Bxg7+ Qxg7 15. Qd6 Nd7 16. Rad1 a5 17. Qc7 a4 18. Rd2 Nc5 19. Qd6 Ne4 20. Bxe4 fxe4 {1-0 (31) Paehtz,E (2473)-Skibbe,D (1991) Magdeburg 2020}) 9... Kh8 {[%emt 0:00:04]} 10. Rd1 {[%emt 0:00:07]} ({White should try} 10. Na3 $16) 10... Nc6 $14 {[%emt 0:00:06]} 11. Na3 {[%emt 0:00:20] White is slightly better.} Ngxe5 {[%emt 0:00:07]} 12. Nxe5 {[%emt 0:00:06]} Bxe5 {[%emt 0:00:08]} 13. Bxe5+ {[%emt 0:00:04] [#]} dxe5 $146 {[%emt 0:00:11]} ({Predecessor:} 13... Nxe5 14. Nc4 Qf6 15. Nxe5 dxe5 16. Qc5 c6 17. Rd6 Be6 18. Rad1 Rfe8 19. a4 Qg7 {1-0 (55) Wawrzyniak,P (1824)-Goral,J (1580) Polanica Zdroj 2020}) 14. Qxd8 {[%emt 0:00:14] White is more active.} Nxd8 {[%emt 0:00:09]} 15. e4 {[%emt 0:00:11]} f4 {[%emt 0:00:07]} 16. Nc4 {[%emt 0:00:03]} Nc6 {[%emt 0:00:10]} 17. c3 {[%emt 0:00:12]} (17. Rd5 $5 {[%cal Rc4e5]}) 17... Be6 {[%emt 0:00:03]} 18. Bf1 {[%emt 0:00:04]} Bxc4 {[%emt 0:00:10]} ({Black should play} 18... Kg7 $11) 19. Bxc4 {[%emt 0:00:01]} Na5 {[%emt 0:00:07]} (19... Rad8 $11 {deserves consideration.}) 20. Rd7 $16 {[%emt 0:00:23]} c6 $2 {[%emt 0:00:06] Inhibits Bd5. This move loses the game for Black.} (20... fxg3 $16 21. hxg3 Nxc4) 21. Bf1 $18 {[%emt 0:00:12]} Rad8 $2 {[%emt 0:00:08]} (21... b5 {was necessary.} 22. Rad1 Kg8) 22. Rad1 {[%emt 0:00:02]} (22. Rxd8 $142 Rxd8 23. b4) 22... Rxd7 {[%emt 0:00:03]} 23. Rxd7 {[%emt 0:00:01][%mdl 4096] [#] Endgame b4 is the strong threat. KRB-KRN} c5 {[%emt 0:00:07]} 24. Rc7 {[%emt 0:00:10]} Rd8 {[%emt 0:00:11]} 25. Rxc5 {[%emt 0:00:01]} Nc6 {[%emt 0:00:01]} 26. Bb5 {[%emt 0:00:05]} Rd1+ {[%emt 0:00:02]} 27. Kg2 {[%emt 0:00:01]} Rd2 {[%emt 0:00:06]} 28. Bxc6 {[%emt 0:00:02]} bxc6 {[%emt 0:00:02]} 29. Rxe5 {[%emt 0:00:04]} ({Not} 29. Rxc6 fxg3 30. hxg3 Rxa2 $18) 29... fxg3 {[%emt 0:00:02]} 30. hxg3 {[%emt 0:00:01]} ({Don't do} 30. Kxg3 Rxa2 31. b4 Kg8 32. Re8+ Kg7 $18) 30... Rxa2 {[%emt 0:00:02] KR-KR} 31. Rc5 {[%emt 0:00:02]} Ra3 $2 {[%emt 0:00:03]} (31... a5 {was worth a try.} 32. Rxc6 Rb2) 32. b4 {[%emt 0:00:02]} Ra6 {[%emt 0:00:02]} 33. Kf3 {[%emt 0:00:02]} Kg7 {[%emt 0:00:01]} 34. Ke3 {[%emt 0:00:01]} Kf7 {[%emt 0:00:02]} (34... Rb6 $142 35. Ra5 Rb7) 35. f4 {[%emt 0:00:10][%cal Bf2f4,Bf4f5,Bf5g6][%mdl 32]} Ke6 {[%emt 0:00:01]} 36. Kd4 {[%emt 0:00:04]} Kd7 {[%emt 0:00:05]} 37. Rg5 {[%emt 0:00:04] [#] Strongly threatening Ra5.} Ra1 {[%emt 0:00:02]} 38. f5 {[%emt 0:00:09]} Rd1+ {[%emt 0:00:02]} 39. Kc5 {[%emt 0:00:02]} Rd3 {[%emt 0:00:03]} 40. fxg6 {[%emt 0:00:09]} Rxc3+ $2 {[%emt 0:00:02]} (40... hxg6 $18 41. Kc4 (41. Rxg6 Rxc3+ 42. Kd4 Rb3 $18) 41... Rd6) 41. Kd4 {[%emt 0:00:01] Weighted Error Value: White=0.36/Black=0.74} 1-0

[Event "German-ch Blitz Women 2022"]
[Site "Magdeburg"]
[Date "2022.08.13"]
[Round "20.2"]
[White "Rath, Alina"]
[Black "Braun, Kristin"]
[Result "0-1"]
[ECO "A16"]
[WhiteElo "2062"]
[BlackElo "1897"]
[Annotator "NA RC"]
[PlyCount "77"]
[EventDate "2022.08.10"]
[EventType "tourn"]
[EventCountry "GER"]
[SourceTitle "playchess.com"]
[Source "ChessBase"]
[SourceQuality "1"]
[TimeControl "180+2"]

1. c4 {[%emt 0:00:01]} Nf6 {[%emt 0:00:00]} 2. Nc3 g6 3. g3 {[%emt 0:00:02]} Bg7 {[%emt 0:00:01]} 4. Bg2 {[%emt 0:00:00]} d6 {[%emt 0:00:01]} 5. e4 {[%emt 0:00:01]} e5 {[%emt 0:00:00]} 6. Nge2 {[%emt 0:00:01]} O-O {[%emt 0:00:02]} 7. O-O {[%emt 0:00:01]} Nc6 {[%emt 0:00:00]} 8. d3 {[%emt 0:00:01]} Be6 {[%emt 0:00:03]} 9. h3 {[%emt 0:00:00]} Qd7 {[%emt 0:00:02]} 10. Kh2 {[%emt 0:00:01]} a5 {[%emt 0:00:01]} 11. f4 {[%emt 0:00:01]} Qe8 {[%emt 0:00:18]} 12. f5 {[%emt 0:00:01]} Bd7 {[%emt 0:00:01]} 13. g4 {[%emt 0:00:01]} Nd4 {[%emt 0:00:14]} 14. g5 {[%emt 0:00:13]} Nh5 {[%emt 0:00:02]} 15. f6 {[%emt 0:00:01]} Bh8 {[%emt 0:00:01]} 16. Nd5 {[%emt 0:00:01]} Nc6 {[%emt 0:00:08]} 17. Bf3 {[%emt 0:00:06]} Nf4 {[%emt 0:00:05]} 18. Nexf4 {[%emt 0:00:06]} exf4 {[%emt 0:00:01]} 19. Bxf4 {[%emt 0:00:02]} Rc8 {[%emt 0:00:07]} 20. Bg2 {[%emt 0:00:02]} Be6 {[%emt 0:00:02]} 21. Nc3 {[%emt 0:00:10]} Qd7 {[%emt 0:00:06]} 22. b3 {[%emt 0:00:03]} Rfe8 {[%emt 0:00:07]} 23. d4 {[%emt 0:00:01]} Qd8 {[%emt 0:01:00]} 24. d5 {[%emt 0:00:02]} Bd7 {[%emt 0:00:01]} 25. dxc6 {[%emt 0:00:01]} Bxc6 {[%emt 0:00:01]} 26. Bg3 {[%emt 0:00:10]} h6 {[%emt 0:00:07]} 27. h4 {[%emt 0:00:02]} Re6 {[%emt 0:00:16]} 28. Nd5 {[%emt 0:00:03]} Bxd5 {[%emt 0:00:04]} 29. cxd5 {[%emt 0:00:01]} Re8 {[%emt 0:00:01]} 30. Qf3 {[%emt 0:00:06]} h5 {[%emt 0:00:07]} 31. Rac1 {[%emt 0:00:09]} c6 {[%emt 0:00:01]} 32. dxc6 {[%emt 0:00:06]} bxc6 {[%emt 0:00:00]} 33. Qd3 {[%emt 0:00:03]} c5 {[%emt 0:00:11]} 34. Bxd6 {[%emt 0:00:12]} Re6 {[%emt 0:00:04]} 35. Rcd1 {[%emt 0:00:06]} Qd7 {[%emt 0:00:09]} 36. e5 {[%emt 0:00:23]} Rd8 {[%emt 0:00:04]} 37. Bh3 {[%emt 0:00:10]} Rxd6 38. Bxd7 {[%emt 0:00:18]} Rxd3 {[%emt 0:00:12]} 39. Rxd3 {[%emt 0:00:01]} 0-1

[Event "German-ch Blitz Women 2022"]
[Site "Magdeburg"]
[Date "2022.08.13"]
[Round "20.3"]
[White "Kunze, Kerstin"]
[Black "Grabowski, Petra"]
[Result "0-1"]
[ECO "C10"]
[WhiteElo "2020"]
[BlackElo "1643"]
[Annotator "TA"]
[PlyCount "125"]
[EventDate "2022.08.10"]
[EventType "tourn"]
[EventCountry "GER"]
[SourceTitle "playchess.com"]
[Source "ChessBase"]
[SourceQuality "1"]
[TimeControl "180+2"]

{[%evp 11,124,-6,-14,-21,0,-4,0,-22,24,0,18,-11,18,31,31,17,45,41,42,44,38,38,75,0,102,57,55,24,44,-18,5,0,52,33,29,28,35,22,20,-3,-3,-8,-3,-3,-3,-4,118,119,174,142,195,196,192,187,199,178,180,182,197,193,210,206,305,31,20,0,0,0,12,-85,1823,1729,1524,1487,2170,1808,2102,1081,1523,1494,1834,1295,1727,1518,2312,2154,29979,29979,29979,29980,29981,29981,29981,29982,29981,29979,29981,29978,29980,29980,29985,29986,29986,29987,29994,29995,29995,29993,29996,29996,29996,29997,29998,29998,29999]} 1. e4 {[%emt 0:00:01]} e6 {[%emt 0:00:01]} 2. d4 {[%emt 0:00:02]} d5 {[%emt 0:00:01]} 3. Nc3 {[%emt 0:00:01]} dxe4 {[%emt 0:00:02]} 4. Nxe4 {[%emt 0:00:01]} Nd7 {[%emt 0:00:00]} 5. Nf3 {[%emt 0:00:04]} Ngf6 {[%emt 0:00:02]} 6. Ng3 {[%emt 0:00:08]} c5 {[%emt 0:00:05]} 7. Bd3 {[%emt 0:00:10] C10: French with 3 Nc3: Unusual Black 3rd moves and 3...dxe4.} cxd4 {[%emt 0:00:05]} 8. Nxd4 {[%emt 0:00:05]} Bc5 {[%emt 0:00:04]} 9. Nb3 {[%emt 0:00:04] The position is equal.} Bb6 {[%emt 0:00:05]} (9... Bd6 {was preferrable.}) 10. O-O {[%emt 0:00:02]} O-O {[%emt 0:00:02] [#]} (10... Ne5 $5 {[%cal Re5d3]}) 11. a4 $146 {[%emt 0:00:10]} ({Predecessor:} 11. Qe2 Qc7 12. Bg5 h6 13. Be3 Bxe3 14. Qxe3 Ne5 15. Rac1 Bd7 16. Ne4 Nxe4 17. Qxe4 Nxd3 18. Qxd3 {1-0 (66) Godzwon,I (2321)-Oparin,G (2674) Chess.com INT 2022}) 11... a5 {[%emt 0:00:10]} 12. Qe2 {[%emt 0:00:15]} Qc7 {[%emt 0:00:08]} 13. Bd2 {[%emt 0:00:20]} Nc5 {[%emt 0:00:05]} 14. Nxc5 {[%emt 0:00:07]} Bxc5 {[%emt 0:00:04]} 15. Bc3 {[%emt 0:00:14] [#] Black must now prevent Bxf6.} Nd5 {[%emt 0:00:10]} 16. Be5 {[%emt 0:00:25]} Qe7 {[%emt 0:00:12]} 17. Rfe1 {[%emt 0:00:07]} ({Better is} 17. Ne4 $16) 17... Bd6 {[%emt 0:00:11]} (17... f6 $11 18. Qe4 Bxf2+ 19. Kxf2 fxe5+ 20. Kg1 Qc5+ 21. Kh1 Nf6) 18. Bxd6 {[%emt 0:00:35]} Qxd6 {[%emt 0:00:02]} 19. Qh5 {[%emt 0:00:17][%csl Gd3][%cal Rh5h7] [#]} h6 {[%emt 0:00:17]} 20. Ne4 {[%emt 0:00:09]} (20. Rad1 $14) 20... Qe7 {[%emt 0:00:12]} 21. Rad1 $40 {[%emt 0:00:04][%mdl 128] White has some attack.} Nf4 {[%emt 0:00:03]} (21... Bd7 $11) 22. Qf3 {[%emt 0:00:03]} Nxd3 {[%emt 0:00:03]} 23. Qxd3 {[%emt 0:00:01]} b6 {[%emt 0:00:05]} 24. Qd4 {[%emt 0:00:03]} Bb7 {[%emt 0:00:11]} 25. Qxb6 {[%emt 0:00:02]} Bxe4 {[%emt 0:00:06]} 26. Rxe4 {[%emt 0:00:03]} Rfb8 {[%emt 0:00:06]} 27. Qc6 {[%emt 0:00:04]} Rc8 {[%emt 0:00:05]} 28. Qb5 {[%emt 0:00:01]} Rcb8 {[%emt 0:00:02]} (28... Rxc2 $11 29. Red4 Qf6) 29. Qe5 $16 {[%emt 0:00:03]} Qb7 {[%emt 0:00:21]} (29... Rc8 $16) 30. b3 {[%emt 0:00:03]} Qc6 {[%emt 0:00:04]} (30... Rd8 $16 31. Red4 Rxd4 32. Qxd4 (32. Rxd4 Qb6 $16) 32... Rb8) 31. Rg4 $18 {[%emt 0:00:03][%csl Gg4][%cal Re5g7]} g6 {[%emt 0:00:18]} 32. Rc4 {[%emt 0:00:01]} Qe8 {[%emt 0:00:13]} 33. Qf6 {[%emt 0:00:04]} Rd8 {[%emt 0:00:07][%cal Rd8d1]} 34. Rcd4 {[%emt 0:00:01]} Rxd4 {[%emt 0:00:03]} 35. Rxd4 {[%emt 0:00:01][%mdl 4096] Endgame KQR-KQR} ({Don't take} 35. Qxd4 Qe7 36. g3 Rb8 $16) 35... Rc8 {[%emt 0:00:03]} 36. h3 {[%emt 0:00:05]} Kh7 {[%emt 0:00:08]} (36... Ra8 $142 37. c4 Qc8) 37. Rh4 $2 {[%emt 0:00:05]} (37. c4 $18) 37... Rxc2 $14 {[%emt 0:00:07]} 38. Rd4 {[%emt 0:00:02]} Rc1+ {[%emt 0:00:02]} 39. Kh2 {[%emt 0:00:00] Strongly threatening Rd8.} Qb8+ {[%emt 0:00:01]} 40. g3 {[%emt 0:00:02]} (40. Rf4 $11 Rc7 41. Qe5) 40... Qc7 $2 {[%emt 0:00:05][%mdl 8192] Black cannot hold the game after this.} (40... Qb7 $17 41. Re4 Rb1) 41. Rd8 $18 {[%emt 0:00:04]} Qxd8 {[%emt 0:00:08]} 42. Qxd8 {[%emt 0:00:01] KQ-KR} Kg7 {[%emt 0:00:00]} 43. Qd4+ {[%emt 0:00:01]} Kh7 {[%emt 0:00:01]} 44. Qd3 {[%emt 0:00:01]} Rc7 {[%emt 0:00:02]} 45. Kg2 {[%emt 0:00:01]} Rb7 {[%emt 0:00:01]} 46. Qc4 {[%emt 0:00:01][%cal Oc4b5] Threatens to win with Qb5!} Kg7 {[%emt 0:00:01]} 47. Qc3+ {[%emt 0:00:01]} Kh7 {[%emt 0:00:02]} 48. Qxa5 {[%emt 0:00:01]} Rxb3 {[%emt 0:00:01]} 49. Qc7 {[%emt 0:00:03] White mates.} Kg7 {[%emt 0:00:02]} 50. a5 {[%emt 0:00:00]} Ra3 {[%emt 0:00:02]} 51. Qe5+ {[%emt 0:00:03]} Kh7 {[%emt 0:00:01]} 52. Qc5 {[%emt 0:00:01]} Ra2 {[%emt 0:00:02]} 53. Qb6 {[%emt 0:00:01]} Kg7 {[%emt 0:00:03]} 54. a6 {[%emt 0:00:02]} h5 {[%emt 0:00:02]} 55. a7 {[%emt 0:00:01]} h4 {[%emt 0:00:01]} 56. gxh4 {[%emt 0:00:02]} Ra4 {[%emt 0:00:02]} 57. Qb7 {[%emt 0:00:02]} Rxh4 {[%emt 0:00:02]} 58. a8=Q {[%emt 0:00:02]} Rh5 {[%emt 0:00:00]} 59. Qa1+ {[%emt 0:00:02]} Kh6 {[%emt 0:00:03]} 60. Qxf7 {[%emt 0:00:02]} Rg5+ {[%emt 0:00:01]} 61. Kh2 {[%emt 0:00:02][%cal Ra1h8]} e5 {[%emt 0:00:01]} 62. Qc1 {[%emt 0:00:01]} Kh5 {[%emt 0:00:01]} 63. Qh7# {[%emt 0:00:02][%mdl 32768] Weighted Error Value: White=0.36/Black=0.47. Loss on time!?} 0-1

[Event "German-ch Blitz Women 2022"]
[Site "Magdeburg"]
[Date "2022.08.13"]
[Round "20.4"]
[White "Doll, Rebecca"]
[Black "Khrapko, Marharyta"]
[Result "0-1"]
[ECO "B32"]
[WhiteElo "1933"]
[BlackElo "2128"]
[Annotator "NA RC"]
[PlyCount "53"]
[EventDate "2022.08.10"]
[EventType "tourn"]
[EventCountry "GER"]
[SourceTitle "playchess.com"]
[Source "ChessBase"]
[SourceQuality "1"]
[TimeControl "180+2"]

1. e4 {[%emt 0:00:01]} c5 {[%emt 0:00:00]} 2. Nf3 {[%emt 0:00:01]} Nc6 {[%emt 0:00:01]} 3. d4 {[%emt 0:00:02]} cxd4 {[%emt 0:00:01]} 4. Nxd4 {[%emt 0:00:01]} e5 {[%emt 0:00:01]} 5. Nb5 {[%emt 0:00:06]} d6 {[%emt 0:00:01]} 6. N1c3 {[%emt 0:00:07]} a6 {[%emt 0:00:02]} 7. Na3 {[%emt 0:00:01]} Be7 {[%emt 0:00:01]} 8. Nc4 {[%emt 0:00:12]} b5 {[%emt 0:00:01]} 9. Ne3 {[%emt 0:00:01]} Nf6 {[%emt 0:00:01]} 10. Ned5 {[%emt 0:00:06]} Nxd5 {[%emt 0:00:24]} 11. Nxd5 {[%emt 0:00:03]} O-O {[%emt 0:00:05]} 12. Be2 {[%emt 0:00:18]} Bg5 {[%emt 0:00:18]} 13. O-O {[%emt 0:00:15]} Be6 {[%emt 0:00:14]} 14. g3 {[%emt 0:00:35]} Nd4 {[%emt 0:00:18]} 15. c3 {[%emt 0:00:32]} Nxe2+ {[%emt 0:00:18]} 16. Qxe2 {[%emt 0:00:02]} Bxc1 {[%emt 0:00:05]} 17. Raxc1 {[%emt 0:00:01]} f5 {[%emt 0:00:10]} 18. exf5 {[%emt 0:00:08]} Bxd5 {[%emt 0:00:02]} 19. b3 {[%emt 0:00:21]} Rxf5 {[%emt 0:00:11]} 20. c4 {[%emt 0:00:08]} bxc4 {[%emt 0:00:07]} 21. bxc4 {[%emt 0:00:02]} Bc6 {[%emt 0:00:06]} 22. Rfd1 {[%emt 0:00:05]} Qe7 {[%emt 0:00:12]} 23. Qd3 {[%emt 0:00:09]} Rf6 {[%emt 0:00:01]} 24. Rc2 {[%emt 0:00:12]} Qe6 {[%emt 0:00:22]} 25. c5 {[%emt 0:00:19]} d5 {[%emt 0:00:20]} 26. Re2 {[%emt 0:00:03]} d4 {[%emt 0:00:03]} 27. Qc2 0-1

[Event "German-ch Blitz Women 2022"]
[Site "Magdeburg"]
[Date "2022.08.13"]
[Round "20.5"]
[White "Wulf, Constanze"]
[Black "Daemering, Katrin"]
[Result "0-1"]
[ECO "A04"]
[WhiteElo "1835"]
[BlackElo "1965"]
[Annotator "TA"]
[PlyCount "56"]
[EventDate "2022.08.10"]
[EventType "tourn"]
[EventCountry "GER"]
[SourceTitle "playchess.com"]
[Source "ChessBase"]
[SourceQuality "1"]
[TimeControl "180+2"]

{[%evp 12,56,24,23,29,21,37,33,72,38,52,33,55,36,61,69,146,110,128,111,203,56,109,100,219,164,135,-176,-172,-212,-236,-239,-227,-218,-230,-228,-199,-254,-276,-247,-245,-347,-347,-326,-314,-491,-479]} 1. Nf3 {[%emt 0:00:01]} g6 {[%emt 0:00:01]} 2. e3 {[%emt 0:00:05]} Bg7 {[%emt 0:00:02]} 3. d4 {[%emt 0:00:05]} d6 {[%emt 0:00:01]} 4. c4 {[%emt 0:00:01]} Nd7 {[%emt 0:00:02]} 5. Nc3 {[%emt 0:00:07]} e5 {[%emt 0:00:02]} 6. Be2 {[%emt 0:00:08]} Ne7 {[%emt 0:00:01]} 7. O-O {[%emt 0:00:05]} O-O {[%emt 0:00:02] A41: 1 d4 d6: Tartakower System and Modern Defence.} 8. Re1 {[%emt 0:00:14] [#]} h6 $146 {[%emt 0:00:02]} ({Predecessor:} 8... Re8 9. d5 a5 10. e4 f5 11. Bg5 h6 12. Be3 Kh7 13. Bd3 f4 14. Bd2 Nc5 15. Bc2 {½-½ (44) Burgarth,U (2455)-Ritsema,R (2428) ICCF email 2015}) 9. Qc2 {[%emt 0:00:05]} f5 {[%emt 0:00:02] White is slightly better.} 10. b4 {[%emt 0:00:11]} a6 {[%emt 0:00:04]} 11. Bb2 {[%emt 0:00:11]} Kh7 {[%emt 0:00:04]} 12. Rad1 {[%emt 0:00:15]} Qe8 {[%emt 0:00:02]} 13. dxe5 {[%emt 0:00:10]} dxe5 {[%emt 0:00:03]} (13... Nxe5 $14 14. Nd5 Nxd5 15. cxd5 Nxf3+ 16. Bxf3 (16. gxf3 Bxb2 17. Qxb2 Qd8 $11) 16... Bxb2 17. Qxb2 Bd7) 14. Nd5 {[%emt 0:00:05]} Nxd5 {[%emt 0:00:07]} 15. cxd5 {[%emt 0:00:06]} ({Don't play} 15. Rxd5 $6 Qe7 $11) 15... Qe7 {[%emt 0:00:25]} (15... Qd8 $16 {keeps fighting.}) 16. a3 {[%emt 0:00:24]} ({White must play} 16. Qxc7 $18 {d6 is the strong threat.} b5 17. d6) 16... Nb6 {[%emt 0:00:04]} ({Black should try} 16... e4 $14) 17. Qc5 $16 {[%emt 0:00:31]} Qf7 {[%emt 0:00:30]} (17... Qxc5 $16 18. bxc5 Na4 19. Bxe5 Bxe5 20. Nxe5 Re8) 18. Bxe5 {[%emt 0:00:21]} Nd7 {[%emt 0:00:06][%cal Bb6d7,Bd7e5,Be5f7,Bf7d6][%mdl 32]} 19. Qxc7 {[%emt 0:00:05][%mdl 8192] [#] Now White is beyond hope.} (19. Qc3 $16) 19... Nxe5 $19 {[%emt 0:00:05]} 20. Qxf7 {[%emt 0:00:06]} Nxf7 {[%emt 0:00:03]} 21. Rc1 {[%emt 0:00:06]} Rd8 {[%emt 0:00:03]} 22. Rc7 {[%emt 0:00:03]} Rd7 {[%emt 0:00:11]} 23. Rec1 {[%emt 0:00:06]} Nd6 {[%emt 0:00:16]} 24. Rxd7 {[%emt 0:00:07]} (24. h3 $142) 24... Bxd7 {[%emt 0:00:02]} 25. Rc7 {[%emt 0:00:01]} Rd8 {[%emt 0:00:03]} 26. Nd4 {[%emt 0:00:11]} (26. h4 {might work better.}) 26... Bxd4 {[%emt 0:00:16]} 27. exd4 {[%emt 0:00:01]} Kg8 {[%emt 0:00:02]} 28. b5 {[%emt 0:00:03]} (28. f3 $142) 28... axb5 {[%emt 0:00:04] Weighted Error Value: White=0.67/Black=0.27 (precise)} ({Not} 28... Bxb5 $2 29. Kf1 $19) 0-1

[Event "German-ch Blitz Women 2022"]
[Site "Magdeburg"]
[Date "2022.08.13"]
[Round "20.6"]
[White "Stangl, Anita"]
[Black "Muetsch, Annmarie"]
[Result "0-1"]
[ECO "C51"]
[WhiteElo "2023"]
[BlackElo "2249"]
[Annotator "TA"]
[PlyCount "79"]
[EventDate "2022.08.10"]
[EventType "tourn"]
[EventCountry "GER"]
[SourceTitle "playchess.com"]
[Source "ChessBase"]
[SourceQuality "1"]
[TimeControl "180+2"]

{[%evp 23,79,0,-14,-11,0,-9,-12,-21,-22,-41,0,-11,14,-22,-9,-59,-4,-37,23,-42,15,-72,-28,-32,-30,-34,0,0,0,-114,-47,-138,0,-66,-59,-314,-92,-421,-89,-99,-85,-315,-160,-698,-702,-1083,-608,-608,-594,-827,-830,-825,-810,-1045,-1033,-1009,-989,-1060]} 1. e4 e5 2. Nf3 Nc6 3. Bc4 Bc5 4. b4 Bxb4 5. c3 Be7 6. d4 Na5 7. Nxe5 Nxc4 8. Nxc4 d5 9. exd5 Qxd5 10. Ne3 Qd8 11. O-O Nf6 12. c4 O-O 13. Bb2 {C51: Evans Gambit: Declined and Accepted without 5...Ba5.} c6 {[#]} 14. Re1 $146 ({Predecessor:} 14. Qf3 Be6 15. Nc3 Qb6 16. Rab1 Qa6 17. d5 cxd5 18. Ncxd5 Bxd5 19. cxd5 Qd3 20. Nf5 Qxf3 21. Nxe7+ {1-0 (29) Bortnyk,M (2473)-Martinez Alcantara,J (2620) Chess.com INT 2020}) 14... Be6 15. Qc2 {The position is equal.} Re8 16. Nd2 Qa5 17. Nf3 Qh5 18. Ne5 Rad8 19. f4 (19. Nf1 $11) 19... Bb4 (19... Ng4 $15 20. N3xg4 Bxg4) 20. Rf1 Bc8 (20... Ng4 $15 21. N3xg4 Bxg4) 21. Rad1 (21. Rf3 $11) 21... Ba5 (21... Ng4 $15 22. N5xg4 Bxg4 23. Nxg4 Qxg4) 22. Qa4 (22. Rf3 $11) 22... Bb6 {A strong pair of Bishops.} (22... Qe2 $5 {[%cal Re2e3]} 23. Bc1 Bc3 24. Qxa7 Ne4 $11) 23. c5 Bc7 24. Qxa7 Re7 25. Qa3 Nd5 26. N3c4 (26. g4 $11 {remains equal.} Qh4 27. Ng2 (27. Nxd5 Rxd5 28. Qg3 Qxg3+ 29. hxg3 f6 $15)) 26... Qh6 ({Black should try} 26... f6 $17 {aiming for ...Nxf4.} 27. Qf3 Qh4) 27. Qg3 (27. Nd6 $15) 27... Bf5 (27... f6 $17 28. Ng4 Qg6) 28. Bc1 (28. Qg5 $11 Bc8 29. Qxh6 gxh6 30. f5) 28... f6 $15 29. Nd3 $2 {[%mdl 8192] [#]} ({Better is} 29. Nd6 $15 Bxd6 30. cxd6) 29... Qh5 $2 (29... Nc3 $19 {has better winning chances. And now ...Ne2+ would win.} 30. Rde1 Ne2+ 31. Rxe2 Rxe2) 30. Rfe1 {[%mdl 8192]} (30. Rde1 $17 {nothing else works.}) 30... Re2 $2 (30... Nc3 $19 31. Rxe7 Qxd1+ 32. Qe1 Bxd3 33. Qxd1 Nxd1) 31. Rxe2 $17 Qxe2 32. Rd2 {[#]} (32. Ndb2 $17) 32... Qe6 ({Black should play} 32... Nc3 $1 $19 33. Qe1 (33. Bb2 $2 Qxd2 34. Nxd2 Ne2+ 35. Kf2 Nxg3 $19) 33... Bxd3 34. Rxe2 Nxe2+ 35. Kf2 Bxc4) 33. Rd1 (33. Nd6 $17) 33... Nc3 $1 $19 {[%csl LRa2,LRc4,LRd1,LRd4] White must now prevent ...Ne2+. Black is clearly winning.} 34. Rd2 Ne2+ 35. Rxe2 Qxe2 36. Qe3 Qxe3+ 37. Bxe3 Bxd3 38. Nd2 Re8 39. Kf2 Ra8 40. Nf3 {Weighted Error Value: White=1.19/Black=0.90} 0-1